bitfinex/quotes_SOLUSD_20240902
["timestamp","ask_amount","ask_price","bid_price","bid_amount"]
[1725311053696,0.37647,135.18,135.08,45.97537151]
[1725311053877,0.25098,135.17,135.08,45.97537151]
[1725311054391,0.12549,135.16,135.08,45.97537151]
[1725311054595,0.12549,135.17,135.08,45.97537151]
[1725311054797,0.12549,135.18,135.08,45.97537151]
[1725311054984,0.37647,135.18,135.08,45.97537151]
[1725311055190,0.12549,135.18,135.1,45.97537151]
[1725311055503,0.37647,135.19,135.11,1.47973286]
[1725311055678,16.2234,135.2,135.12,45.97537151]
[1725311055886,16.2234,135.2,135.13,1.4795712]
[1725311056394,22.6784,135.24,135.16,45.97537151]
[1725311057098,22.6784,135.24,135.11,50.0]
[1725311057281,7.3949,135.23,135.12,65.97537151]
[1725311057481,30.073,135.24,135.13,50.0]
[1725311057788,0.50196,135.23,135.14,45.97537151]
[1725311058101,22.6784,135.24,135.16,45.97537151]
[1725311059376,30.0726,135.24,135.14,45.97537151]
[1725311060098,22.6784,135.24,135.14,45.97537151]
[1725311060283,0.25098,135.23,135.14,45.97537151]
[1725311060481,0.12549,135.22,135.14,45.97537151]
[1725311061004,0.25098,135.22,135.12,65.97537151]
[1725311062102,0.12549,135.21,135.12,65.97537151]
[1725311062398,0.37647,135.21,135.12,65.97537151]
[1725311063292,7.3968,135.2,135.09,50.0]
[1725311063607,6.191,135.18,135.09,50.0]
[1725311063974,6.191,135.18,135.1,45.97537151]
[1725311064818,6.191,135.18,135.09,50.0]
[1725311067980,6.1502,135.22,135.14,45.97537151]
[1725311068177,6.1502,135.22,135.16,45.97537151]
[1725311068382,6.1502,135.22,135.18,45.97537151]
[1725311068577,6.1502,135.22,135.16,45.97537151]
[1725311069019,6.1502,135.22,135.17,1.47930379]
[1725311069504,6.1502,135.22,135.16,45.97537151]
[1725311071105,6.1502,135.22,135.17,1.47918555]
[1725311071615,6.0848,135.26,135.18,45.97537151]
[1725311071783,6.0848,135.26,135.19,1.47892169]
[1725311072814,6.0848,135.26,135.16,45.97537151]
[1725311072985,0.25098,135.25,135.14,45.97537151]
[1725311073305,0.37647,135.24,135.15,20.0]
[1725311073485,0.25098,135.23,135.15,20.0]
[1725311073886,0.12549,135.23,135.15,20.0]
[1725311074103,0.25098,135.24,135.16,47.45455695]
[1725311074411,0.12549,135.25,135.16,45.97537151]
[1725311074593,0.50196,135.25,135.16,45.97537151]
[1725311075184,6.0848,135.26,135.17,45.0]
[1725311075385,6.0848,135.26,135.16,45.97537151]
[1725311076305,6.0848,135.26,135.18,45.97537151]
[1725311076891,0.12549,135.25,135.18,45.97537151]
[1725311077208,0.50196,135.25,135.16,45.97537151]
[1725311077790,0.50196,135.25,135.17,20.0]
[1725311077992,0.12549,135.25,135.18,1.47908833]
[1725311078398,0.12549,135.25,135.17,20.0]
[1725311078601,0.12549,135.24,135.17,20.0]
[1725311079207,0.25098,135.24,135.17,20.0]
[1725311079710,0.12549,135.25,135.18,1.47918002]
[1725311079900,6.0848,135.26,135.18,1.47918002]
[1725311080099,6.0848,135.26,135.17,20.0]
[1725311081693,0.12549,135.25,135.11,50.0]
[1725311081998,0.12549,135.23,135.12,45.97537151]
[1725311082206,0.25098,135.23,135.12,45.97537151]
[1725311082405,0.25098,135.22,135.12,45.97537151]
[1725311082709,0.25098,135.21,135.12,45.97537151]
[1725311082914,0.25098,135.21,135.13,20.0]
[1725311083119,6.6031,135.19,135.13,20.0]
[1725311084214,6.6031,135.19,135.13,21.47976336]
[1725311084423,6.6031,135.19,135.14,45.97537151]
[1725311084606,6.6031,135.19,135.15,1.47942257]
[1725311084993,6.6031,135.19,135.14,45.97537151]
[1725311084994,6.6031,135.23,135.14,95.97537151]
[1725311085194,6.6031,135.23,135.16,45.97537151]
[1725311085402,6.6031,135.23,135.14,45.97537151]
[1725311085609,6.6031,135.23,135.15,20.0]
[1725311089424,0.12549,135.22,135.15,20.0]
[1725311089600,0.50196,135.22,135.1,95.97537151]
[1725311090205,0.50196,135.22,135.14,45.97537151]
[1725311090417,0.37647,135.22,135.14,45.97537151]
[1725311090612,0.25098,135.22,135.14,45.97537151]
[1725311090823,0.12549,135.21,135.12,45.97537151]
[1725311090998,0.12549,135.2,135.08,65.9328]
[1725311091204,0.12549,135.2,135.09,49.03944531]
[1725311091422,0.12549,135.2,135.09,45.97537151]
[1725311091628,0.12549,135.2,135.11,45.97537151]
[1725311092422,0.12549,135.2,135.12,20.0]
[1725311092896,0.12549,135.22,135.13,45.97537151]
[1725311093103,0.50196,135.22,135.13,45.97537151]
[1725311093502,0.25098,135.22,135.13,45.97537151]
[1725311093903,0.12549,135.22,135.13,45.97537151]
[1725311095004,0.25098,135.22,135.13,45.97537151]
[1725311096224,0.25098,135.22,135.12,20.0]
[1725311096530,0.25098,135.21,135.11,69.04034211]
[1725311096708,0.25098,135.21,135.11,65.97537151]
[1725311098105,6.6031,135.23,135.15,45.97537151]
[1725311099103,6.6031,135.23,135.13,45.97537151]
[1725311099307,6.6031,135.23,135.14,20.0]
[1725311100331,6.6031,135.23,135.17,45.97537151]
[1725311100513,16.5327,135.24,135.19,45.97537151]
[1725311100717,22.0776,135.28,135.19,45.97537151]
[1725311100905,22.0776,135.28,135.17,45.97537151]
[1725311101106,22.0776,135.28,135.18,20.0]
[1725311102325,22.0776,135.28,135.19,47.45430415]
[1725311102515,22.0776,135.28,135.19,45.97537151]
[1725311103308,6.0347,135.26,135.12,72.56142323]
[1725311103517,16.5147,135.25,135.13,49.03766312]
[1725311103712,23.9086,135.25,135.13,45.97537151]
[1725311103918,0.50196,135.24,135.13,45.97537151]
[1725311105417,15.26599,135.22,135.11,95.97537151]
[1725311105614,0.12549,135.21,135.13,45.97537151]
[1725311105816,0.25098,135.21,135.13,45.97537151]
[1725311106039,0.37647,135.21,135.13,45.97537151]
[1725311106221,0.25098,135.21,135.13,45.97537151]
[1725311106417,15.26599,135.22,135.12,50.0]
[1725311106738,15.26599,135.22,135.17,45.97537151]
[1725311106739,15.1405,135.22,135.17,45.97537151]
[1725311106906,6.2079,135.23,135.19,45.97537151]
[1725311107716,6.4773,135.29,135.2,1.47889399]
[1725311107913,15.9506,135.28,135.2,20.0]
[1725311108739,15.9506,135.28,135.23,45.97537151]
[1725311110632,15.9506,135.28,135.21,45.97537151]
[1725311110935,15.9506,135.28,135.22,20.0]
[1725311112316,6.4773,135.29,135.23,47.45384498]
[1725311112621,22.1955,135.32,135.25,95.97537151]
[1725311112819,22.1955,135.32,135.25,45.97537151]
[1725311113135,22.1955,135.32,135.26,20.0]
[1725311113338,22.1955,135.32,135.26,70.0]
[1725311113538,16.1623,135.41,135.27,92.45330391]
[1725311113718,16.1623,135.41,135.28,20.0]
[1725311113913,52.26477151,135.4,135.28,20.0]
[1725311114220,52.26477151,135.4,135.28,70.0]
[1725311114406,6.2894,135.4,135.29,45.97537151]
[1725311114922,6.2894,135.4,135.3,1.47772847]
[1725311115123,6.2894,135.4,135.29,45.97537151]
[1725311115336,6.2894,135.4,135.3,1.47785569]
[1725311115714,6.2894,135.4,135.29,45.97537151]
[1725311116519,6.2894,135.4,135.3,50.0]
[1725311116837,6.2894,135.4,135.31,112.45277584]
[1725311117248,6.2894,135.4,135.31,65.0]
[1725311117537,6.2894,135.4,135.32,1.47754112]
[1725311117742,6.2894,135.4,135.32,46.47754112]
[1725311118126,6.236,135.38,135.25,50.0]
[1725311118324,6.236,135.38,135.27,50.0]
[1725311118529,6.236,135.38,135.25,95.97537151]
[1725311118834,0.12549,135.37,135.27,50.0]
[1725311119270,6.236,135.35,135.24,6.21422323]
[1725311119543,6.236,135.35,135.22,50.0]
[1725311119544,0.50196,135.34,135.22,95.97537151]
[1725311119834,0.12549,135.32,135.22,45.97537151]
[1725311120018,0.50196,135.34,135.22,45.97537151]
[1725311120218,45.50196,135.34,135.22,45.97537151]
[1725311120434,0.50196,135.34,135.22,95.97537151]
[1725311121013,0.50196,135.34,135.2,433.2]
[1725311121225,0.50196,135.34,135.21,45.97537151]
[1725311121435,22.765,135.33,135.21,45.97537151]
[1725311121626,0.12549,135.32,135.22,50.0]
[1725311122141,0.37647,135.32,135.21,95.97537151]
[1725311122717,0.12549,135.31,135.22,20.0]
[1725311122932,0.50196,135.31,135.22,20.0]
[1725311123440,6.236,135.3,135.22,20.0]
[1725311123622,0.12549,135.29,135.2,20.0]
[1725311123821,0.50196,135.29,135.2,20.0]
[1725311124215,16.529,135.28,135.19,50.0]
[1725311124438,16.529,135.28,135.17,353.57537151]
[1725311124644,0.25098,135.27,135.17,353.57537151]
[1725311124815,0.25098,135.27,135.17,257.6]
[1725311125144,0.12549,135.25,135.17,257.6]
[1725311125340,0.12549,135.25,135.15,45.97537151]
[1725311125721,0.25098,135.25,135.15,45.97537151]
[1725311126042,0.12549,135.23,135.13,45.97537151]
[1725311126246,0.25098,135.23,135.13,45.97537151]
[1725311126539,0.25098,135.22,135.13,45.97537151]
[1725311126920,6.569,135.21,135.13,45.97537151]
[1725311127121,0.12549,135.2,135.11,95.97537151]
[1725311127647,0.25098,135.2,135.11,95.97537151]
[1725311127823,0.37647,135.2,135.11,45.97537151]
[1725311128021,0.37647,135.2,135.09,95.97537151]
[1725311128227,0.37647,135.2,135.07,95.97537151]
[1725311128228,0.12549,135.17,135.07,95.97537151]
[1725311128528,0.12549,135.17,135.02,15.8897]
[1725311128529,7.3998,135.14,135.02,6.21422323]
[1725311128738,0.12549,135.12,135.02,6.21422323]
[1725311129049,0.12549,135.12,135.01,45.97537151]
[1725311129949,0.12549,135.1,135.02,20.0]
[1725311130257,22.2316,135.11,135.03,1.48079781]
[1725311130568,22.2316,135.11,135.02,70.0]
[1725311130731,22.2316,135.11,135.02,20.0]
[1725311131049,0.25098,135.1,135.02,20.0]
[1725311131341,0.12549,135.09,135.02,20.0]
[1725311131541,0.25098,135.09,135.0,20.0]
[1725311133039,22.2316,135.11,135.0,20.0]
[1725311133228,0.25098,135.1,135.0,20.0]
[1725311133434,22.2316,135.11,135.01,95.97537151]
[1725311133639,22.2316,135.11,135.02,65.0]
[1725311133838,22.2316,135.11,135.02,20.0]
[1725311134235,22.2316,135.11,135.03,97.45594622]
[1725311134464,22.2316,135.11,135.04,65.0]
[1725311134958,22.2316,135.11,135.04,20.0]
[1725311136047,22.2316,135.11,135.02,20.0]
[1725311136237,22.2316,135.11,135.04,45.97537151]
[1725311137144,0.12549,135.1,135.04,45.97537151]
[1725311137449,22.2316,135.11,135.06,45.97537151]
[1725311138531,22.2316,135.11,135.08,45.97537151]
[1725311138754,22.2316,135.11,135.06,45.97537151]
[1725311139627,22.2316,135.11,135.04,45.97537151]
[1725311141354,22.2316,135.11,135.08,45.97537151]
[1725311141663,22.2316,135.11,135.1,45.97537151]
[1725311141846,6.1761,135.11,135.1,45.97537151]
[1725311142444,6.1761,135.11,135.08,45.97537151]
[1725311142652,6.1761,135.11,135.06,45.97537151]
[1725311142955,6.1761,135.11,135.07,20.0]
[1725311143748,6.1761,135.11,135.06,45.97537151]
[1725311144236,6.1761,135.11,135.04,45.97537151]
[1725311144237,6.1761,135.11,135.08,45.97537151]
[1725311146367,6.6004,135.14,135.1,45.97537151]
[1725311146862,6.6004,135.14,135.12,45.97537151]
[1725311147554,6.6004,135.14,135.1,45.97537151]
[1725311148330,6.6004,135.14,135.08,45.97537151]
[1725311148534,0.37647,135.13,135.06,45.97537151]
[1725311149149,0.37647,135.13,135.08,45.97537151]
[1725311149464,6.72589,135.14,135.08,45.97537151]
[1725311149755,0.12549,135.13,135.06,45.97537151]
[1725311149956,0.50196,135.13,135.06,45.97537151]
[1725311150849,0.50196,135.13,135.04,45.97537151]
[1725311152360,7.90266,135.13,135.04,45.97537151]
[1725311152567,0.12549,135.11,135.04,45.97537151]
[1725311152749,0.25098,135.11,135.04,45.97537151]
[1725311153063,0.12549,135.1,135.04,45.97537151]
[1725311153364,0.37647,135.1,135.04,45.97537151]
[1725311153739,0.25098,135.1,135.04,45.97537151]
[1725311154045,15.2618,135.08,135.04,45.97537151]
[1725311155362,6.4538,135.07,135.0,45.97537151]
[1725311156440,6.4538,135.07,135.02,45.97537151]
[1725311161358,6.4538,135.07,135.04,45.97537151]
[1725311161566,15.2618,135.08,135.04,45.97537151]
[1725311161872,6.084,135.11,135.04,45.97537151]
[1725311162044,6.084,135.11,135.06,36.91148196]
[1725311162671,6.084,135.11,134.98,50.0]
[1725311162855,6.084,135.11,135.02,36.91148196]
[1725311163372,0.12549,135.1,135.0,36.91148196]
[1725311163668,0.12549,135.08,135.0,36.91148196]
[1725311163875,6.084,135.05,134.98,36.91148196]
[1725311164058,0.25098,135.04,134.96,0.8764985]
[1725311164264,0.12549,135.03,134.97,36.91148196]
[1725311164449,0.25098,135.03,134.97,36.91148196]
[1725311164859,0.12549,135.03,134.97,36.91148196]
[1725311165357,0.12549,135.02,134.97,36.91148196]
[1725311165586,0.12549,135.04,134.97,36.91148196]
[1725311165872,0.12549,135.02,134.96,0.8764985]
[1725311166066,0.25098,135.02,134.96,0.8764985]
[1725311166366,0.25098,135.02,134.96,47.09951184]
[1725311166582,0.12549,135.01,134.96,47.09951184]
[1725311166754,0.12549,135.0,134.96,0.8764985]
[1725311166958,0.37647,135.0,134.96,0.8764985]
[1725311167153,0.12549,134.98,134.96,0.8764985]
[1725311167452,15.2365,134.97,134.96,0.8764985]
[1725311168089,6.3173,134.99,134.96,0.8764985]
[1725311168281,0.25098,134.98,134.96,0.8764985]
[1725311168457,0.37647,134.97,134.96,0.8764985]
[1725311168770,6.3173,134.99,134.96,0.8764985]
[1725311169860,0.12549,134.98,134.96,0.8764985]
[1725311170362,0.37647,134.98,134.96,0.8764985]
[1725311170864,0.12549,134.97,134.96,0.8764985]
[1725311173276,6.3173,134.99,134.96,0.8764985]
[1725311173860,15.2365,135.01,134.96,0.8764985]
[1725311174482,6.589,135.02,134.96,47.09951184]
[1725311174778,6.589,135.02,134.97,1.48158909]
[1725311174979,6.589,135.02,134.96,47.09951184]
[1725311175171,6.589,135.02,134.96,0.8764985]
[1725311175364,13.9957,135.02,134.96,0.8764985]
[1725311175764,15.8206,135.01,134.96,0.8764985]
[1725311176078,46.34850334,135.0,134.96,0.8764985]
[1725311176284,13.89199,134.97,134.96,0.8764985]
[1725311176485,59.26846,134.97,134.96,0.8764985]
[1725311177165,22.4459,134.96,134.86,46.22301334]
[1725311177377,0.12549,134.94,134.86,46.22301334]
[1725311178366,0.12549,134.94,134.84,61.36981334]
[1725311178561,7.53619,134.94,134.84,46.22301334]
[1725311178760,0.12549,134.92,134.85,20.0]
[1725311178973,0.37647,134.92,134.85,20.0]
[1725311179308,0.12549,134.91,134.84,46.22301334]
[1725311179586,0.12549,134.89,134.82,0.8764985]
[1725311179758,45.37647,134.89,134.82,0.8764985]
[1725311179960,0.12549,134.87,134.82,0.8764985]
[1725311180161,45.25098,134.87,134.82,0.8764985]
[1725311180361,0.12549,134.86,134.82,0.8764985]
[1725311180619,0.12549,134.85,134.82,0.8764985]
[1725311180889,0.25098,134.85,134.82,0.8764985]
[1725311181480,0.12549,134.83,134.82,0.8764985]
[1725311181676,0.25098,134.83,134.82,0.8764985]
[1725311181885,0.37647,134.83,134.82,0.8764985]
[1725311182085,0.50196,134.83,134.82,0.8764985]
[1725311183879,6.58796,134.83,134.82,0.8764985]
[1725311184193,51.58796,134.83,134.82,0.8764985]
[1725311185395,59.00466,134.83,134.82,0.8764985]
[1725311186281,23.1719,134.82,134.72,46.22301334]
[1725311186471,0.50196,134.81,134.72,46.22301334]
[1725311186780,7.92016,134.81,134.72,46.22301334]
[1725311186956,52.4184,134.8,134.7,46.22301334]
[1725311187163,45.25098,134.79,134.7,46.22301334]
[1725311187459,0.25098,134.78,134.72,46.22301334]
[1725311187893,0.12549,134.76,134.7,46.22301334]
[1725311188371,0.25098,134.76,134.7,46.22301334]
[1725311188565,0.12549,134.75,134.7,46.22301334]
[1725311188780,0.25098,134.75,134.7,46.22301334]
[1725311189381,0.25098,134.74,134.69,0.8764985]
[1725311189587,0.12549,134.73,134.69,0.8764985]
[1725311189763,0.12549,134.72,134.69,0.8764985]
[1725311189965,0.37647,134.72,134.69,0.8764985]
[1725311190264,0.12549,134.71,134.69,0.8764985]
[1725311190463,0.37647,134.71,134.69,0.8764985]
[1725311190878,0.25098,134.71,134.69,0.8764985]
[1725311191077,0.12549,134.72,134.69,0.8764985]
[1725311191284,0.12549,134.73,134.69,0.8764985]
[1725311191582,22.2917,134.75,134.69,0.8764985]
[1725311192790,0.25098,134.74,134.69,0.8764985]
[1725311193089,0.12549,134.73,134.69,0.8764985]
[1725311193582,0.12549,134.72,134.69,0.8764985]
[1725311193795,0.25098,134.72,134.69,0.8764985]
[1725311193968,0.25098,134.71,134.69,0.8764985]
[1725311194167,0.12549,134.71,134.69,0.8764985]
[1725311194476,0.25098,134.72,134.69,0.8764985]
[1725311194788,6.5955,134.75,134.69,0.8764985]
[1725311195378,15.6962,134.78,134.7,46.22301334]
[1725311196091,15.6962,134.78,134.71,1.48441877]
[1725311196266,15.6962,134.78,134.7,46.22301334]
[1725311197298,46.22301334,134.84,134.76,46.22301334]
[1725311197299,6.528,134.83,134.76,46.22301334]
[1725311197473,6.528,134.83,134.78,46.22301334]
[1725311197673,6.528,134.83,134.72,15.7673]
[1725311197674,6.528,134.83,134.76,46.22301334]
[1725311199472,6.528,134.83,134.72,15.7673]
[1725311199473,6.528,134.83,134.74,46.22301334]
[1725311199827,6.528,134.83,134.72,61.99031334]
[1725311200104,7.419,134.79,134.69,0.8764985]
[1725311200284,0.12549,134.77,134.69,0.8764985]
[1725311200487,0.37647,134.77,134.69,0.8764985]
[1725311200685,0.12549,134.76,134.69,0.8764985]
[1725311200998,0.12549,134.75,134.7,46.22301334]
[1725311201491,0.37647,134.75,134.7,46.22301334]
[1725311202386,0.37647,134.75,134.71,1.48444101]
[1725311203198,0.37647,134.75,134.69,0.8764985]
[1725311203506,0.12549,134.74,134.69,0.8764985]
[1725311203877,0.12549,134.73,134.69,0.8764985]
[1725311204283,0.25098,134.73,134.69,0.8764985]
[1725311204886,15.3067,134.8,134.7,46.22301334]
[1725311205072,0.12549,134.79,134.7,46.22301334]
[1725311205272,7.54459,134.79,134.7,46.22301334]
[1725311206399,0.12549,134.77,134.69,0.8764985]
[1725311206701,7.54669,134.75,134.69,0.8764985]
[1725311206883,0.12549,134.73,134.69,0.8764985]
[1725311210097,0.37647,134.74,134.7,46.22301334]
[1725311210878,0.12549,134.74,134.7,46.22301334]
[1725311211086,6.6595,134.79,134.72,46.22301334]
[1725311211294,0.12549,134.78,134.72,46.22301334]
[1725311212175,6.6595,134.79,134.72,46.22301334]
[1725311212579,6.6595,134.79,134.69,0.8764985]
[1725311212580,6.6595,134.79,134.74,46.22301334]
[1725311212816,18.5385,134.86,134.74,46.22301334]
[1725311212817,21.336,134.86,134.74,46.22301334]
[1725311213115,28.7514,134.86,134.78,46.22301334]
[1725311213481,7.4157,134.85,134.78,46.22301334]
[1725311214381,7.4167,134.83,134.76,46.22301334]
[1725311214591,21.336,134.86,134.74,46.22301334]
[1725311214798,0.12549,134.82,134.74,46.22301334]
[1725311214991,0.50196,134.82,134.74,46.22301334]
[1725311216283,7.91936,134.82,134.74,46.22301334]
[1725311216502,0.50196,134.82,134.74,46.22301334]
[1725311216887,7.91926,134.82,134.74,46.22301334]
[1725311217086,21.336,134.86,134.76,46.22301334]
[1725311217314,21.336,134.86,134.78,46.22301334]
[1725311217908,28.7515,134.86,134.78,46.22301334]
[1725311218093,21.336,134.86,134.75,46.22301334]
[1725311219300,0.25098,134.85,134.75,46.22301334]
[1725311219504,0.25098,134.85,134.78,46.22301334]
[1725311219900,21.336,134.86,134.78,46.22301334]
[1725311220123,21.336,134.86,134.8,46.22301334]
[1725311220629,22.6813,134.9,134.82,46.22301334]
[1725311220912,22.6813,134.9,134.8,46.22301334]
[1725311220913,7.4145,134.87,134.8,46.22301334]
[1725311221207,22.6813,134.9,134.78,21.9131]
[1725311221208,30.0942,134.9,134.78,46.22301334]
[1725311221509,22.6813,134.9,134.8,46.22301334]
[1725311221902,22.6813,134.9,134.78,46.22301334]
[1725311222104,7.4152,134.86,134.75,62.45611334]
[1725311222410,0.12549,134.85,134.75,62.45611334]
[1725311222616,0.25098,134.82,134.74,6.1006]
[1725311222786,0.25098,134.82,134.77,46.22301334]
[1725311222984,0.25098,134.82,134.78,1.48367934]
[1725311223296,0.25098,134.82,134.78,1.48367906]
[1725311223913,0.12549,134.81,134.77,46.22301334]
[1725311224206,0.25098,134.81,134.77,46.22301334]
[1725311226006,0.25098,134.81,134.75,46.22301334]
[1725311226211,0.12549,134.79,134.75,46.22301334]
[1725311226519,0.25098,134.8,134.75,46.22301334]
[1725311227394,0.12549,134.81,134.76,1.48386413]
[1725311227606,0.25098,134.81,134.77,46.22301334]
[1725311229519,13.7424,134.86,134.77,46.22301334]
[1725311229710,16.077,134.87,134.83,46.22301334]
[1725311230023,6.3268,134.89,134.84,1.48304168]
[1725311230698,6.3268,134.89,134.83,46.22301334]
[1725311231108,6.3268,134.93,134.87,46.22301334]
[1725311232306,0.12549,134.92,134.85,46.22301334]
[1725311233721,45.50196,134.92,134.85,46.22301334]
[1725311234089,0.50196,134.92,134.85,46.22301334]
[1725311234290,6.3268,134.93,134.87,46.22301334]
[1725311234601,6.3268,134.93,134.9,46.22301334]
[1725311235405,6.3243,134.96,134.9,46.22301334]
[1725311235693,6.3243,134.96,134.91,1.48223485]
[1725311235899,6.3243,134.96,134.9,46.22301334]
[1725311236620,14.0438,135.0,134.9,46.22301334]
[1725311237501,0.12549,134.99,134.9,46.22301334]
[1725311237921,7.53349,134.99,134.9,46.22301334]
[1725311238326,6.6364,135.0,134.94,46.22301334]
[1725311239106,6.6364,135.0,134.89,46.22301334]
[1725311239724,7.4086,134.98,134.89,46.22301334]
[1725311239930,0.12549,134.96,134.87,61.49221334]
[1725311240233,7.53549,134.96,134.87,46.22301334]
[1725311240420,0.12549,134.94,134.87,46.22301334]
[1725311240933,0.12549,134.94,134.89,46.22301334]
[1725311242608,0.25098,134.94,134.87,46.22301334]
[1725311242911,47.0292,135.03,134.89,46.22301334]
[1725311242912,14.0441,135.0,134.89,46.22301334]
[1725311243121,45.25098,134.99,134.91,46.22301334]
[1725311243430,0.12549,134.97,134.91,46.22301334]
[1725311243635,6.6364,135.0,134.93,46.22301334]
[1725311244940,6.3954,135.04,134.97,46.22301334]
[1725311245225,6.3954,135.04,134.98,1.48146776]
[1725311247534,0.12549,135.03,134.95,46.22301334]
[1725311248238,45.50196,135.03,134.95,46.22301334]
[1725311248946,0.12549,135.01,134.91,16.5223]
[1725311249108,0.12549,135.02,134.93,46.22301334]
[1725311249314,0.12549,135.01,134.93,46.22301334]
[1725311249526,0.37647,135.01,134.93,46.22301334]
[1725311250034,0.12549,135.0,134.93,46.22301334]
[1725311250224,0.12549,134.99,134.93,46.22301334]
[1725311250533,0.37647,134.99,134.91,46.22301334]
[1725311250735,23.11227,134.99,134.91,46.22301334]
[1725311251040,0.12549,134.98,134.91,46.22301334]
[1725311251218,0.12549,134.97,134.91,46.22301334]
[1725311251418,0.37647,134.97,134.89,46.22301334]
[1725311251938,0.12549,134.96,134.89,46.22301334]
[1725311252146,0.12549,134.95,134.88,257.6]
[1725311252350,7.78657,134.95,134.83,21.4359]
[1725311252640,7.78657,134.95,134.86,46.22301334]
[1725311252851,0.12549,134.94,134.86,46.22301334]
[1725311253136,0.12549,134.93,134.86,46.22301334]
[1725311253342,0.12549,134.93,134.88,46.22301334]
[1725311253819,0.37647,134.93,134.89,1.48248282]
[1725311254018,0.12549,134.94,134.9,46.22301334]
[1725311254217,0.12549,134.95,134.91,1.48217297]
[1725311254422,0.25098,134.95,134.91,1.48217297]
[1725311254623,0.12549,134.94,134.9,46.22301334]
[1725311254940,0.25098,134.94,134.86,46.22301334]
[1725311255245,0.12549,134.93,134.87,20.0]
[1725311255417,0.12549,134.92,134.87,20.0]
[1725311255937,0.37647,134.92,134.86,46.22301334]
[1725311256146,0.12549,134.91,134.86,46.22301334]
[1725311256443,0.37647,134.91,134.86,46.22301334]
[1725311256638,0.12549,134.9,134.8,6.2952]
[1725311256830,60.1968,134.95,134.88,46.22301334]
[1725311257150,0.50196,134.94,134.88,46.22301334]
[1725311257434,6.5931,134.97,134.9,46.22301334]
[1725311258440,7.4096,134.96,134.88,46.22301334]
[1725311258613,6.5931,134.97,134.88,46.22301334]
[1725311258815,0.12549,134.95,134.88,46.22301334]
[1725311260440,0.50196,134.95,134.88,46.22301334]
[1725311260641,0.12549,134.95,134.9,46.22301334]
[1725311260822,0.12549,134.96,134.9,46.22301334]
[1725311261738,6.6573,135.03,134.91,16.1697]
[1725311261925,7.4068,135.02,134.94,46.22301334]
[1725311262130,6.6573,135.03,134.94,46.22301334]
[1725311262535,7.4064,135.02,134.94,46.22301334]
[1725311262744,14.0631,135.03,134.94,46.22301334]
[1725311263042,6.6573,135.03,134.95,1.48181255]
[1725311263232,6.6573,135.03,134.96,46.22301334]
[1725311264047,6.6573,135.03,134.94,46.22301334]
[1725311264228,7.4063,135.02,134.94,46.22301334]
[1725311264834,45.50196,135.01,134.94,46.22301334]
[1725311265039,0.50196,135.01,134.94,46.22301334]
[1725311266038,0.50196,135.01,134.96,46.22301334]
[1725311266230,0.50196,135.01,134.97,1.48158511]
[1725311266944,0.50196,135.01,134.94,46.22301334]
[1725311267336,0.50196,135.01,134.92,46.22301334]
[1725311267656,0.12549,134.99,134.92,46.22301334]
[1725311267853,7.90896,135.01,134.92,46.22301334]
[1725311268262,0.12549,134.99,134.92,46.22301334]
[1725311268555,0.50196,134.99,134.93,1.4820397]
[1725311268744,0.37647,134.99,134.94,46.22301334]
[1725311268943,0.12549,134.98,134.94,46.22301334]
[1725311269338,0.37647,134.98,134.94,46.22301334]
[1725311271953,45.0,135.02,134.96,46.22301334]
[1725311272158,6.6573,135.03,134.98,46.22301334]
[1725311272370,6.6573,135.03,134.99,1.48137341]
[1725311272582,6.6573,135.03,134.98,46.22301334]
[1725311272851,15.7872,135.04,134.98,46.22301334]
[1725311273560,15.7872,135.04,134.99,1.48143227]
[1725311273854,29.0099,135.07,135.0,46.22301334]
[1725311274059,7.4042,135.06,134.98,46.22301334]
[1725311274878,0.12549,135.05,134.98,46.22301334]
[1725311275057,45.50196,135.05,134.98,46.22301334]
[1725311275643,52.90676,135.05,134.98,46.22301334]
[1725311277053,21.6063,135.07,135.02,46.22301334]